Cogmind - Beta 10.2 @@@ ROGUE MODE // 2021.04.14 @ 16:34:46 Player: ChromeKnight Result: Destroyed by G-34 Mercenary with Small Laser Performance ------------- Evolutions (1) 500 Regions Visited (4) 800 Robots Destroyed (42) 210 Value Destroyed (857) 857 Prototype IDs (2) 40 Alien Tech Used (0) 0 Bonus (46) 46 TOTAL SCORE: 2453 Bonus ------- High Alert Combat Kills 11 Follower Combat Kills 35 Cogmind --------- Core Integrity 0/400 Matter 109/300 Energy 93/100 System Corruption 1% Temperature Cool (6) Movement Core (300) Ox5 Location -9/Storage Parts ------- > --- POWER (1) -------- (None) > --- PROPULSION (3) --- (None) > --- UTILITY (3) ------ Cooling System Large Storage Unit Weight Redist. System > --- WEAPON (2) ------- (None) > --- INVENTORY (10) --- Medium Matter Pod (100) Improved Terrain Scanner Terrain Scan Processor Utility Shielding Guided EMP Blaster Peak State ------------ > --- POWER ------------ Cooled Ion Engine > --- PROPULSION ------- Armored Wheel Armored Wheel Armored Wheel > --- UTILITY ---------- Heat Sink Large Storage Unit Weapon Shielding > --- WEAPON ----------- Guided EMP Blaster > --- INVENTORY -------- Flight Unit Flight Unit Flight Unit Medium Matter Pod Improved Terrain Scanner Terrain Scan Processor Guided EMP Blaster Guided EMP Blaster [Rating: 27] Favorites ----------- Power Light Ion Engine Engine Light Ion Engine Propulsion Armored Wheel Leg Aluminum Leg Wheel Armored Wheel Flight Unit Flight Unit Utility Large Storage Unit Device Heat Sink Storage Large Storage Unit Protection Core Shielding Weapon EM Shotgun Energy Gun EM Shotgun Energy Cannon Beam Cannon Ballistic Gun Assault Rifle Ballistic Cannon Battle Cannon Launcher Rocket Launcher Build | -11 -10 -10 -9 -9 ------- Run | Scr Mat Min Mat Sto Slots Evolved 2 | . . . 2 . Power . | . . . . . Propulsion 1 | . . . 1 . Utility 1 | . . . 1 . Weapon . | . . . . . Parts Attached 45 | 6 2 9 19 9 Power 6 | 1 . 1 3 1 Engine 6 | 1 . 1 3 1 Core . | . . . . . Reactor . | . . . . . Propulsion 12 | 2 . 3 4 3 Treads . | . . . . . Leg 3 | 2 . 1 . . Wheel 5 | . . 1 4 . Hover . | . . . . . Flight 4 | . . 1 . 3 Utility 10 | 1 2 . 4 3 Device 4 | . . . 2 2 Storage 3 | 1 1 . 1 . Processor . | . . . . . Hackware . | . . . . . Protection 3 | . 1 . 1 1 Artifact . | . . . . . Weapon 17 | 2 . 5 8 2 Energy Gun 8 | 1 . 1 6 . Energy Cannon 2 | . . 2 . . Ballistic Gun 3 | 1 . . 2 . Ballistic Cannon 1 | . . 1 . . Launcher 3 | . . 1 . 2 Special Weapon . | . . . . . Impact Weapon . | . . . . . Slashing Weapon . | . . . . . Piercing Weapon . | . . . . . Special Melee Weapon . | . . . . . Unidentified Prototypes 2 | . . . 1 1 Parts Lost 21 | . . 8 3 10 Power 5 | . . 2 1 2 Propulsion 7 | . . 2 . 5 Utility 1 | . . . . 1 Weapon 8 | . . 4 2 2 Highest Loss Streak 5 | . . 5 2 4 Average Slot Usage (%) 85 | . 88 84 90 77 Engine 9 | . 14 8 8 8 Leg 10 | . 28 20 . . Wheel 13 | . . . 26 23 Flight 2 | . . 1 3 5 Device 5 | . . . 9 13 Storage 12 | . 14 14 11 11 Protection 10 | . 3 14 11 6 Energy Gun 8 | . 14 4 16 1 Energy Cannon 2 | . . 5 1 . Ballistic Gun 3 | . 14 4 2 . Launcher 4 | . . 9 . 7 Naked Turns . | . . . . . Heaviest Build 37 | 10 23 27 32 37 Greatest Support 36 | 20 20 20 36 36 Greatest Overweight (x) 7 | 1 1 7 2 5 Average Overweight (x) . | . . 1 . . Largest Inventory Capacity 12 | 6 12 10 10 10 Average Capacity 9 | 5 9 10 10 10 Most Carried 10 | 5 10 10 10 10 Average Carried 8 | 3 7 9 8 8 Final Capacity 10 | 6 10 10 10 10 Final Carried 10 | 5 10 8 10 6 Class Distribution -------------------- 93% | Mutant 6% | Scavenger-Mutant Dominant Class ---------------- Mutant | -10/Materials Mutant | -10/Mines Mutant | -9/Materials Mutant | -9/Storage Resources | -11 -10 -10 -9 -9 ----------- Run | Scr Mat Min Mat Sto Matter Collected 1032 | 335 . 278 270 149 Remotely . | . . . . . Salvage Created 1349 | 245 . 148 576 380 Parts 92 | 23 . 11 34 24 Haulers Intercepted 2 | . . . 2 . Recyclers Shooed 4 | 1 . . . 3 Parts Field Recycled . | . . . . . Retrieved Matter . | . . . . . Parts Self-Destructed . | . . . . . Prevented . | . . . . . Kills | -11 -10 -10 -9 -9 ------- Run | Scr Mat Min Mat Sto Combat Hostiles Destroyed 40 | . . 20 13 7 Guns 12 | . . . 12 . Cannons 4 | . . 4 . . AOE 23 | . . 16 1 6 Classes Destroyed 10 | 3 . 4 2 1 Worker 1 | 1 . . . . Builder 4 | . . . . 4 Tunneler 7 | 7 . . . . Hauler 2 | . . . 2 . Recycler 1 | 1 . . . . Swarmer 13 | . . 3 7 3 Grunt 4 | . . 3 1 . Sentry 9 | . . . 5 4 Demolisher 1 | . . 1 . . Assembled 13 | . . 13 . . Best Kill Streak 13 | 4 . 13 5 7 Combat Bots Only 13 | . . 13 5 3 Max Kills in Single Turn 7 | 1 . 7 1 2 Gunslinging . | . . . . . Exploded 7 | . . 7 1 2 Melee . | . . . . . Uniques/NPCs Destroyed . | . . . . . Combat | -11 -10 -10 -9 -9 -------- Run | Scr Mat Min Mat Sto Damage Taken 2607 | . . 822 528 1257 Core 555 | . . 155 97 303 Absorbed by Shields 36 | . . . . 36 Core Remaining (%) 69 | 100 . 38 . . Volleys Fired 116 | 25 1 20 51 19 Largest 2 | 2 2 2 2 1 Hottest 120 | 60 60 120 100 50 Shots Fired 192 | 50 2 33 88 19 Gun 138 | 50 2 3 83 . Cannon 24 | . . 19 5 . Launcher 30 | . . 11 . 19 Special . | . . . . . Kinetic 45 | 25 1 7 12 . Thermal 46 | 25 1 15 5 . Explosive 11 | . . 11 . . Electromagnetic 90 | . . . 71 19 Robot Hit Streak 16 | 8 1 5 11 16 Robot Miss Streak 7 | 3 1 3 7 . Penetration Max . | . . . . . Secondary Targets . | . . . . . Shots Hit Robots 119 | 29 1 17 61 11 Core Hits 92 | 10 . 37 28 17 Critical Hits . | . . . . . Critical Kills . | . . . . . Critical Parts Destroyed . | . . . . . Melee Attacks . | . . . . . Impact . | . . . . . Slashing . | . . . . . Piercing . | . . . . . Sneak Attacks . | . . . . . Combat Hostiles . | . . . . . Follow-up Attacks . | . . . . . Damage Inflicted 3150 | 328 . 1423 719 680 Guns 979 | 328 . 10 641 . Cannons 250 | . . 199 51 . Explosions 1875 | . . 1214 27 634 Melee . | . . . . . Ramming 46 | . . . . 46 Kinetic 295 | 155 . 51 89 . Thermal 409 | 173 . 158 78 . Explosive 1214 | . . 1214 . . Electromagnetic 1186 | . . . 552 634 Impact . | . . . . . Slashing . | . . . . . Piercing . | . . . . . Highest Corruption 5 | . . 5 . 1 Average Corruption 3 | . . 5 . 1 Corruption Purged . | . . . . . Effects 14 | . . 13 . 1 Message Errors 2 | . . 2 . . Matter Fused 4 | . . 4 . . Heat Flow Errors 3 | . . 3 . . Energy Discharges 3 | . . 2 . 1 Data Loss (minor) 1 | . . 1 . . Targeting Errors 1 | . . 1 . . Overload Shots . | . . . . . Overflow Damage 50 | . . 28 . 22 Projectiles . | . . . . . Explosions 46 | . . 28 . 18 Melee 4 | . . . . 4 Knockbacks . | . . . . . Impact . | . . . . . Kinetic . | . . . . . Secondary . | . . . . . Self-Inflicted Damage 209 | . . 110 49 50 Shots 7 | . . 3 1 3 Rammed 6 | . . . . 6 Targets Rammed 6 | . . . . 6 Kicked . | . . . . . Crushed . | . . . . . Highest Temperature 255 | 20 . 255 39 15 Average Temperature 60 | 18 . 89 10 9 Received Heat Transfer 634 | . . 142 102 390 Effects 1 | . . 1 . . Interference 1 | . . 1 . . Siege Activations . | . . . . . Robots Corrupted 1 | . . . . 1 Combat Hostiles 1 | . . . . 1 Parts Fried 10 | . . . 1 9 Impact Corruptions 1 | . . . . 1 Robots Melted . | . . . . . Combat Hostiles . | . . . . . Parts Melted . | . . . . . Heat Transferred 844 | 400 . 333 111 . Parts Sabotaged . | . . . . . Parts Stolen . | . . . . . Parts Stripped . | . . . . . Power Chain Reactions 1 | . . . 1 . Missiles Intercepted . | . . . . . Alert | -11 -10 -10 -9 -9 ------- Run | Scr Mat Min Mat Sto Peak Influence 463 | 45 29 245 273 463 Initial 93 | . 29 10 19 93 Average 138 | 18 29 85 159 320 Maximum Alert Level 2 | . . 1 1 2 Low Security (%) 72 | 100 100 85 71 21 Level 1 18 | . . 14 28 27 Level 2 9 | . . . . 50 Level 3 . | . . . . . Level 4 . | . . . . . Level 5 . | . . . . . High Security . | . . . . . Max Security . | . . . . . Squads Dispatched 3 | . 1 . . 2 Investigation . | . . . . . Extermination . | . . . . . Reinforcement 3 | . 1 . . 2 Assault . | . . . . . Garrison . | . . . . . Intercept . | . . . . . Construction Impeded 1 | . . . . 1 Haulers Reinforced . | . . . . . Stealth | -11 -10 -10 -9 -9 --------- Run | Scr Mat Min Mat Sto Distress Signals 4 | . . 1 3 . Communications Jammed . | . . . . . Distress Signals . | . . . . . Times Spotted 68 | . 1 34 16 17 Peak Tracking Total 20 | . 1 20 4 5 Tactical Retreats 8 | . . 2 1 5 Traps | -11 -10 -10 -9 -9 ------- Run | Scr Mat Min Mat Sto Traps Triggered 3 | . . . . 3 Indirectly . | . . . . . Trap Hack Attempts . | . . . . . Triggered . | . . . . . Disarmed . | . . . . . Reprogrammed . | . . . . . Reused . | . . . . . Traps Extracted . | . . . . . Installed . | . . . . . Triggered . | . . . . . Machines | -11 -10 -10 -9 -9 ---------- Run | Scr Mat Min Mat Sto Machines Disabled 4 | . . 1 1 2 Max in Single Turn 1 | . . 1 1 1 Machines Sabotaged . | . . . . . Garrisons Compromised . | . . . . . Overloaded Fab Kills . | . . . . . Fab Network Shutdowns . | . . . . . Hacking | -11 -10 -10 -9 -9 --------- Run | Scr Mat Min Mat Sto Machines Accessed . | . . . . . Terminals . | . . . . . Fabricators . | . . . . . Repair Stations . | . . . . . Recycling Units . | . . . . . Scanalyzers . | . . . . . Garrison Access . | . . . . . Total Hacks . | . . . . . Successful . | . . . . . Failed . | . . . . . Catastrophic . | . . . . . Database Lockouts . | . . . . . Manual . | . . . . . Terminals . | . . . . . Fabricators . | . . . . . Repair Stations . | . . . . . Recycling Units . | . . . . . Scanalyzers . | . . . . . Garrison Access . | . . . . . Terminal Hacks . | . . . . . Fabricator Hacks . | . . . . . Repair Station Hacks . | . . . . . Recycling Unit Hacks . | . . . . . Scanalyzer . | . . . . . Garrison Access Hacks . | . . . . . Unauthorized Hacks . | . . . . . Terminals . | . . . . . Fabricators . | . . . . . Repair Stations . | . . . . . Recycling Units . | . . . . . Scanalyzers . | . . . . . Garrison Access . | . . . . . Data Cores Recovered . | . . . . . Used . | . . . . . Hacking Detections . | . . . . . Full Trace Events . | . . . . . Feedback Events . | . . . . . Feedback Blocked . | . . . . . Robot Schematics Acquired . | . . . . . Robots Built . | . . . . . Matter . | . . . . . Time . | . . . . . Total Robot Build Rating . | . . . . . Part Schematics Acquired . | . . . . . Parts Built . | . . . . . Matter . | . . . . . Time . | . . . . . Total Part Build Rating . | . . . . . Parts Repaired . | . . . . . Time . | . . . . . Parts Recycled . | . . . . . Recycled Matter . | . . . . . Retrieved Matter . | . . . . . Retrieved Components . | . . . . . Parts Scanalyzed . | . . . . . Part Schematics Acquired . | . . . . . Parts Damaged . | . . . . . Bothacking | -11 -10 -10 -9 -9 ------------ Run | Scr Mat Min Mat Sto Used RIF Installer . | . . . . . Robots Hacked . | . . . . . Non-combat . | . . . . . Combat . | . . . . . Robot Hacks Applied . | . . . . . Relay Couplers Released . | . . . . . Robots Rewired . | . . . . . Allies Hacked . | . . . . . Hacks Repelled . | . . . . . Allies | -11 -10 -10 -9 -9 -------- Run | Scr Mat Min Mat Sto Total Allies 3 | . . 3 . . Largest Group 3 | . . 3 . . Highest-Rated Group 40 | . . 40 . . Highest-Rated Ally 16 | . . 16 . . Total Orders . | . . . . . Ally Attacks 19 | . . 19 . . Total Damage 248 | . . 248 . . Kills 5 | . . 5 . . Allies Corrupted . | . . . . . Allies Melted . | . . . . . Intel | -11 -10 -10 -9 -9 ------- Run | Scr Mat Min Mat Sto Robot Analysis Total . | . . . . . Derelict Logs Recovered 2 | . . 2 . . Drone Launches . | . . . . . Drone Recoveries . | . . . . . Exploration | -11 -10 -10 -9 -9 ------------- Run | Scr Mat Min Mat Sto Turns Passed 2165 | 220 169 758 623 395 Spaces Moved 1321 | 114 107 403 418 279 Core 42 | 16 . 25 . 1 Treads . | . . . . . Legs 543 | 98 107 338 . . Wheels 670 | . . 21 418 231 Hover . | . . . . . Flight 66 | . . 19 . 47 Fastest Speed 50 | 50 120 90 85 90 Average Speed 125 | 115 148 170 91 104 Slowest Speed 400 | 120 150 400 100 360 Overloaded Moves . | . . . . . Propulsion Burnouts . | . . . . . Robots Hopped . | . . . . . Cave-ins Triggered . | . . . . . Exploration Rate (%) 42 | 5 24 90 37 55 Regions Visited 4 Branch Regions 2 Pre-discovered Areas 2 | . . 2 . . Known Exits Taken . | . . . . . Unknown Exits Taken 4 | 1 1 1 1 . Scrap Searched . | . . . . . Spaces Dug . | . . . . . Terrain Destroyed 91 | . . 88 3 . Melee . | . . . . . Projectile . | . . . . . AOE 91 | . . 88 3 . Terrain Rammed . | . . . . . Walls Destroyed . | . . . . . Machines Disabled . | . . . . . Actions | -11 -10 -10 -9 -9 --------- Run | Scr Mat Min Mat Sto Total 1644 | 149 115 438 572 370 Wait 86 | . . 4 57 25 Move 1317 | 113 106 402 417 279 Hop . | . . . . . Pick Up 27 | 5 5 . 10 7 Fast Attach 28 | 6 2 6 12 2 Attach 9 | . . 2 3 4 Detach 1 | . . . 1 . Swap 8 | . . 1 4 3 Drop 32 | . 1 3 17 11 Fire 116 | 25 1 20 51 19 Melee . | . . . . . Ram 6 | . . . . 6 Kick . | . . . . . Crush . | . . . . . Escape Stasis 14 | . . . . 14 Rewire . | . . . . . Trap . | . . . . . Miscellaneous . | . . . . . Route ------- -11/Scrapyard -10/Materials -10/Mines (discovered 2 exits: [*Mat x2]) -9/Materials -9/Storage History --------- Turn | Location | Event 13 | -11/Scrapyard | Discovered new exit (range 15) 221 | -11/Scrapyard | Entered Materials 307 | -10/Materials | Build established: Mutant 376 | -10/Materials | Discovered new exit (range 5) 390 | -10/Materials | Entered Mines 393 | -10/Mines | Assisted by bots powering up and referring to "LRC-V3" 408 | -10/Mines | Learned location of Zion (-6) 436 | -10/Mines | Received a Rocket Launcher from a helpful Derelict 641 | -10/Mines | A weapon hastily lodged in a ceiling crevice suddenly fell to the ground 652 | -10/Mines | Learned location of Recycling (-9) 656 | -10/Mines | Assembled infested the area 717 | -10/Mines | Destroyed 13 combat bots 719 | -10/Mines | Discovered new exit (range 5) 969 | -10/Mines | Lost 5 parts (1p2n2w) 999 | -10/Mines | Core integrity fell below 50% 1134 | -10/Mines | Discovered new exit (range 7) 1148 | -10/Mines | Entered Materials 1148 | -9/Materials | Evolved 2 slots: Propulsion x1, Utility x1 1758 | -9/Materials | Discovered new exit (range 10) 1771 | -9/Materials | Entered Storage 1960 | -9/Storage | Core integrity fell below 50% 2103 | -9/Storage | Lost 4 parts (1p2n1w) 2123 | -9/Storage | Core integrity fell below 20% 2162 | -9/Storage | Lost 3 parts (1p2n) 2166 | -9/Storage | Destroyed by G-34 Mercenary with Small Laser Last Messages --------------- 02052_ Triggered Stasis Trap. 02052_ A bubble of rippling energy engulfs the area. 02052_ Field strength at 90. 02053_ Field strength at 76. 02054_ Field strength at 66. 02055_ Field strength at 52. 02056_ Field strength at 35. 02057_ Field strength at 21. 02058_ Field strength at 11. 02059_ Gui. EMP Blaster destroyed. 02059_ Stasis field depleted. 02072_ Arm. Wheel destroyed. 02079_ Dropped Arm. Wheel. 02107_ Flight Unit destroyed. 02119_ Imp. Ion Engine destroyed. 02127_ Slammed into K-01 Serf. 02131_ Flight Unit destroyed. 02149_ K-01 Serf collects debris. 02162_ Flight Unit destroyed. 02165_ K-01 Serf collects debris. Map ----- +----------------------------------------------------+ | | | | | | | | | | | | | | | | | | | ???????????????????????????????????????????? | | ???????????????????????????????????????????? | | ???????????????????????????????????????????? | | ??????????????????????????????????????????## | | ??????????????????#####################??! | | ??????????????????# #?]! | | ????????????????###+## ########### #]! | | ????????????????# # #??????# # | | ????????????????# # #??????# / | | ????????????????# k # #??????# ### # | | ????????????????# # #??????## #??# ###### | | ????????????????# Y + #???????# ???# + | | ????????????????# Ygg# #???????# ???# #### | | ????????????????# # #???????#+???# #??# | | ????????????????# # #????????????+ #??# ! | | ????????????????# # #????????????# #??# | | ????????????????###@## #????????????# #??# | | ????????????????? #????????????# #??### | | ????????????????## #????????????# #????? | | ?????????????????# #????????????? ????## | | ?????????????????# #????????????? ????# | | ?????????????????# #????????????? ????# | | ?????????????????# #????????????? ????# | | ?????????????????# #????????????? | | ????????????????? #?????????????+???##+ | | ?????????????????# #???????????????????? | | ?????????????????## #???????????????????? | | ??????????????????? #???????????????????? | | ??????????????????? ???????????????????? | | ??????????????????? ???????????????????? | | ???????????????????+####???????????????????? | | ??????????????????????????????????#????????? | | ?????????????????????????????????? ????????? | | ?????????????????????????????????? ????????? | | ?????????????????????????????????? ??####### | | ?????????????????????????????????? ??# | | ?????????????????????????????????? ??# | | ?????????????????????????????????# #?# | | ?????????????????????????????????# #?######+ | | ?????????????????????????????????# #??# | | ?????????????????????????????????# #??# """ | +----------------------------------------------------+ Best States ------------- Heat Dissipation 50 Energy Generation 23 Energy Capacity 280 Matter Stores 300 Matter Capacity 300 Sight Range 16 Terrain Scan Density 10 Additional Mass Support 6 Core Shielding 20 Utility Shielding 33 Weapon Shielding 33 Evasion (%) 42 Item Schematics ----------------- None Robot Schematics ------------------ None Fabricated ------------ Nothing Alien Tech Used ----------------- None Achievements -------------- None Challenges ------------ None Game ------ Seed GyrokineticPrecisionWings Manual? 0 Play Time 00:19:23 Cumulative 143.1 hours Start 2021.04.14 @ 16:15:34 End 2021.04.14 @ 16:34:46 Sessions 1 Manual Loads 0 Difficulty Rogue Special Mode None Game No. 319 Rogue 166 Adventurer 148 Explorer 5 Win Type - Total 3 Types 3/0/0/0/0/0/0/0/0 Lore% 66 Gallery% 75 Achievement% 57 Wizard Run 0 Options --------- ASCII 0 Keyboard 0 Movement Numpad Keybinds 0 Fullscreen 1 Font 14/X11 Map View 84x54 Tactical HUD 1 Map Filters NONE Filters NONE Steam 1 RUN: 356b5b13-68cc-4d3f-90d0-b1ed597f733a